[Event "Vienna Chess Open 2019"]
[Site "Vienna"]
[Date "2019.08.22"]
[Round "7.5"]
[White "Janzelj, Tim"]
[Black "Peyrer, Konstantin"]
[Result "1-0"]
[ECO "E20"]
[WhiteElo "2260"]
[BlackElo "2260"]
[Annotator "NA"]
[PlyCount "61"]
[EventDate "2019.08.17"]
[EventType "swiss"]
[EventCountry "AUT"]
[SourceTitle "playchess.com"]
[Source "ChessBase"]
[SourceQuality "1"]
[TimeControl "40/5400+30:1800+30"]

1. d4 {[%emt 0:00:00]} Nf6 {[%emt 0:00:00]} 2. c4 {[%emt 0:00:00]} e6 {[%emt 0:00:05]} 3. Nc3 {[%emt 0:00:00]} Bb4 {[%emt 0:00:05]} 4. Bd2 {[%emt 0:00:09]} b6 {[%emt 0:00:09]} 5. Nf3 {[%emt 0:00:08]} Bb7 {[%emt 0:00:05]} 6. e3 {[%emt 0:00:17]} O-O {[%emt 0:00:18]} 7. Bd3 {[%emt 0:00:34]} d6 {[%emt 0:00:24]} 8. O-O {[%emt 0:00:09]} Nbd7 {[%emt 0:00:07]} 9. a3 {[%emt 0:03:04]} Bxc3 {[%emt 0:00:06]} 10. Bxc3 {[%emt 0:00:03]} Ne4 {[%emt 0:00:25]} 11. Bxe4 {[%emt 0:05:38]} Bxe4 {[%emt 0:00:07]} 12. Nd2 {[%emt 0:00:29]} Bd3 {[%emt 0:00:53]} 13. Re1 {[%emt 0:00:07]} f5 {[%emt 0:02:47]} 14. b3 {[%emt 0:12:31]} c5 {[%emt 0:14:14]} 15. f3 {[%emt 0:25:35]} b5 {[%emt 0:05:45]} 16. Rc1 {[%emt 0:03:20]} Qb6 {[%emt 0:06:16]} 17. dxc5 {[%emt 0:22:32]} dxc5 {[%emt 0:04:21]} 18. Nb1 {[%emt 0:01:00]} Bxb1 {[%emt 0:00:56]} 19. Qxd7 {[%emt 0:00:01]} Rf7 {[%emt 0:00:10]} 20. Qxb5 {[%emt 0:01:13]} Ba2 {[%emt 0:00:59]} 21. Ba5 {[%emt 0:03:09]} Qxb5 {[%emt 0:00:44]} 22. cxb5 {[%emt 0:00:02]} Bxb3 {[%emt 0:01:03]} 23. Rxc5 {[%emt 0:00:00]} Rd7 {[%emt 0:00:35]} 24. Rec1 {[%emt 0:02:41]} Rb8 {[%emt 0:03:42]} 25. Rb1 {[%emt 0:09:37]} Rd3 {[%emt 0:05:02]} 26. Kf2 {[%emt 0:04:56]} Ba4 {[%emt 0:01:34]} 27. Bc3 {[%emt 0:00:11]} Rxb5 {[%emt 0:01:42]} 28. Rc8+ {[%emt 0:00:07]} Kf7 {[%emt 0:00:18]} 29. Rc7+ {[%emt 0:00:00]} Kf8 {[%emt 0:01:33]} 30. Bb4+ {[%emt 0:01:13]} Kg8 {[%emt 0:01:43]} 31. Rxa7 {[%emt 0:00:03]} 1-0

[Event "Vienna Chess Open 2019"]
[Site "Vienna"]
[Date "2019.08.22"]
[Round "7.6"]
[White "Ozen, Deniz"]
[Black "Kaasen, Tor Fredrik"]
[Result "1/2-1/2"]
[ECO "B52"]
[WhiteElo "2429"]
[BlackElo "2373"]
[Annotator "NA"]
[PlyCount "39"]
[EventDate "2019.08.17"]
[EventType "swiss"]
[EventCountry "AUT"]
[SourceTitle "playchess.com"]
[Source "ChessBase"]
[SourceQuality "1"]
[TimeControl "40/5400+30:1800+30"]

1. e4 {[%emt 0:00:00]} c5 {[%emt 0:00:00]} 2. Nf3 {[%emt 0:00:00]} d6 {[%emt 0:00:19]} 3. Bb5+ {[%emt 0:00:00]} Bd7 {[%emt 0:00:20]} 4. Bxd7+ {[%emt 0:00:04]} Qxd7 {[%emt 0:00:08]} 5. O-O {[%emt 0:00:11]} Nf6 {[%emt 0:00:38]} 6. Re1 {[%emt 0:04:22]} Nc6 {[%emt 0:00:30]} 7. c3 {[%emt 0:01:06]} e6 {[%emt 0:00:34]} 8. d4 {[%emt 0:00:07]} cxd4 {[%emt 0:00:08]} 9. cxd4 {[%emt 0:00:06]} d5 {[%emt 0:00:05]} 10. e5 {[%emt 0:00:10]} Ne4 {[%emt 0:00:05]} 11. a3 {[%emt 0:03:17]} Be7 {[%emt 0:01:59]} 12. Nbd2 {[%emt 0:00:22]} Nxd2 {[%emt 0:02:39]} 13. Bxd2 {[%emt 0:00:01]} O-O {[%emt 0:00:35]} 14. Rc1 {[%emt 0:00:05]} Rfc8 {[%emt 0:01:18]} 15. Rc3 {[%emt 0:00:12]} Qd8 {[%emt 0:09:43]} 16. Qa4 {[%emt 0:19:07]} a6 {[%emt 0:08:14]} 17. Rec1 {[%emt 0:02:08]} Na7 {[%emt 0:01:03]} 18. Qb3 {[%emt 0:03:53]} Rxc3 {[%emt 0:05:23]} 19. Rxc3 {[%emt 0:00:58]} Qd7 {[%emt 0:00:52]} 20. h3 {[%emt 0:02:54]} 1/2-1/2

[Event "Vienna Chess Open 2019"]
[Site "Vienna"]
[Date "2019.08.22"]
[Round "7.6"]
[White "Belke, Frank"]
[Black "Miralles, Gilles"]
[Result "1/2-1/2"]
[ECO "E34"]
[WhiteElo "2427"]
[BlackElo "2266"]
[Annotator "NA"]
[PlyCount "107"]
[EventDate "2019.08.17"]
[EventType "swiss"]
[EventCountry "AUT"]
[SourceTitle "playchess.com"]
[Source "ChessBase"]
[SourceQuality "1"]
[TimeControl "40/5400+30:1800+30"]

1. d4 {[%emt 0:00:00]} Nf6 {[%emt 0:00:00]} 2. c4 {[%emt 0:00:00]} e6 {[%emt 0:00:03]} 3. Nc3 {[%emt 0:00:00]} Bb4 {[%emt 0:00:05]} 4. Qc2 {[%emt 0:00:00]} d5 {[%emt 0:00:50]} 5. Nf3 {[%emt 0:00:02]} c5 {[%emt 0:03:01]} 6. cxd5 {[%emt 0:04:18]} exd5 {[%emt 0:09:18]} 7. Bg5 {[%emt 0:00:27]} h6 {[%emt 0:05:19]} 8. Bxf6 {[%emt 0:02:40]} Qxf6 {[%emt 0:00:07]} 9. e3 {[%emt 0:00:33]} Nc6 {[%emt 0:10:11]} 10. a3 {[%emt 0:09:37]} Bf5 {[%emt 0:11:58]} 11. Bd3 {[%emt 0:05:46]} Bxd3 {[%emt 0:01:54]} 12. Qxd3 {[%emt 0:01:59]} c4 {[%emt 0:04:31]} 13. Qc2 {[%emt 0:00:04]} Bxc3+ {[%emt 0:00:43]} 14. bxc3 {[%emt 0:04:55]} b5 {[%emt 0:00:55]} 15. O-O {[%emt 0:00:13]} O-O {[%emt 0:00:26]} 16. Rfe1 {[%emt 0:00:15]} a5 {[%emt 0:03:29]} 17. e4 {[%emt 0:04:24]} Qg6 {[%emt 0:13:10]} 18. Nh4 {[%emt 0:04:47]} Qg4 {[%emt 0:01:54]} 19. g3 {[%emt 0:04:24]} dxe4 {[%emt 0:01:23]} 20. Rxe4 {[%emt 0:03:59]} Qh5 {[%emt 0:02:18]} 21. Rae1 {[%emt 0:01:55]} Rac8 {[%emt 0:05:33]} 22. Ng2 {[%emt 0:06:34]} b4 {[%emt 0:01:11]} 23. Nf4 {[%emt 0:00:17]} Qf5 {[%emt 0:01:42]} 24. Qe2 {[%emt 0:09:00]} bxc3 {[%emt 0:02:01]} 25. d5 {[%emt 0:03:32]} Nb8 {[%emt 0:03:17]} 26. Re5 {[%emt 0:04:02]} Qf6 {[%emt 0:03:21]} 27. Nh5 {[%emt 0:04:49]} Qg6 {[%emt 0:00:37]} 28. Nf4 {[%emt 0:00:18]} Qf6 {[%emt 0:00:56]} 29. Nh5 {[%emt 0:01:10]} Qg6 {[%emt 0:00:10]} 30. Nf4 {[%emt 0:00:08]} Qd6 {[%emt 0:05:03]} 31. Qg4 {[%emt 0:02:07]} c2 {[%emt 0:00:43]} 32. Nh5 {[%emt 0:07:47]} Qxe5 {[%emt 0:01:21]} 33. Rxe5 {[%emt 0:00:09]} c1=Q+ {[%emt 0:00:03]} 34. Kg2 {[%emt 0:00:04]} g6 {[%emt 0:00:53]} 35. Nf6+ {[%emt 0:02:26]} Kh8 {[%emt 0:01:47]} 36. Qd4 {[%emt 0:00:22]} Rcd8 {[%emt 0:01:14]} 37. Re6 {[%emt 0:04:13]} Qd1 {[%emt 0:04:26]} 38. Qxd1 {[%emt 0:00:38]} fxe6 {[%emt 0:00:04]} 39. Qa1 {[%emt 0:01:43]} exd5 {[%emt 0:00:37]} 40. Nxd5+ {[%emt 0:00:33]} Kg8 {[%emt 0:01:09]} 41. Nf6+ {[%emt 0:34:43]} Kf7 {[%emt 0:02:24]} 42. Ng4 {[%emt 0:00:00]} Nd7 {[%emt 0:02:31]} 43. Nxh6+ {[%emt 0:00:00]} Ke6 {[%emt 0:00:50]} 44. Qe1+ {[%emt 0:00:00]} Kd6 {[%emt 0:02:11]} 45. Qd2+ {[%emt 0:00:00]} Kc6 {[%emt 0:03:46]} 46. Ng4 {[%emt 0:00:00]} Rf5 {[%emt 0:01:47]} 47. Qc2 {[%emt 0:00:00]} Rc5 {[%emt 0:02:05]} 48. Qxg6+ {[%emt 0:00:00]} Kc7 {[%emt 0:00:46]} 49. Ne3 {[%emt 0:00:00]} Ne5 {[%emt 0:02:21]} 50. Qa6 {[%emt 0:00:00]} c3 {[%emt 0:00:59]} 51. Qa7+ {[%emt 0:00:00]} Kc6 {[%emt 0:00:20]} 52. Qa6+ {[%emt 0:00:00]} Kc7 {[%emt 0:00:45]} 53. Qa7+ {[%emt 0:00:00]} Kc6 {[%emt 0:00:27]} 54. Qa6+ {[%emt 0:00:00]} 1/2-1/2

[Event "Vienna Chess Open 2019"]
[Site "Vienna"]
[Date "2019.08.22"]
[Round "7.6"]
[White "Stark, Lars"]
[Black "Shengelia, David"]
[Result "0-1"]
[ECO "A14"]
[WhiteElo "2362"]
[BlackElo "2523"]
[Annotator "ChessBase"]
[PlyCount "76"]
[EventDate "2019.08.17"]
[EventType "swiss"]
[EventCountry "AUT"]
[SourceTitle "playchess.com"]
[Source "ChessBase"]
[SourceQuality "1"]
[TimeControl "40/5400+30:1800+30"]

1. c4 {[%emt 0:00:00]} e6 {[%emt 0:00:00]} 2. g3 {[%emt 0:00:09]} d5 {[%emt 0:00:34]} 3. Bg2 {[%emt 0:00:39]} Nf6 {[%emt 0:00:25]} 4. Nf3 {[%emt 0:00:13]} Be7 {[%emt 0:00:49]} 5. O-O {[%emt 0:00:31]} O-O {[%emt 0:00:12]} 6. b3 {[%emt 0:01:20]} d4 {[%emt 0:04:40]} 7. e3 {[%emt 0:04:36]} c5 {[%emt 0:00:58]} 8. exd4 {[%emt 0:00:56]} cxd4 {[%emt 0:00:10]} 9. Bb2 {[%emt 0:01:42]} Nc6 {[%emt 0:00:16]} 10. Re1 {[%emt 0:00:37]} Re8 {[%emt 0:04:42]} 11. Na3 {[%emt 0:05:56]} Bf8 {[%emt 0:18:35]} 12. d3 {[%emt 0:02:50]} e5 {[%emt 0:00:18]} 13. Nc2 {[%emt 0:00:26]} Nd7 {[%emt 0:15:35]} 14. Rb1 {[%emt 0:03:16]} a5 {[%emt 0:05:00]} 15. a3 {[%emt 0:00:52]} Rb8 {[%emt 0:06:17]} 16. Bc1 {[%emt 0:01:23]} h6 {[%emt 0:01:25]} 17. b4 {[%emt 0:00:30]} axb4 {[%emt 0:00:16]} 18. axb4 {[%emt 0:07:38]} b5 {[%emt 0:00:50]} 19. Nh4 {[%emt 0:07:23]} Bb7 {[%emt 0:04:23]} 20. cxb5 {[%emt 0:11:51]} Na7 {[%emt 0:01:19]} 21. Bxb7 {[%emt 0:00:43]} Rxb7 {[%emt 0:00:03]} 22. Qf3 {[%emt 0:02:09]} Rb6 {[%emt 0:05:48]} 23. Na3 {[%emt 0:01:50]} Nxb5 {[%emt 0:00:17]} 24. Nxb5 {[%emt 0:01:47]} Rxb5 {[%emt 0:00:03]} 25. Bd2 {[%emt 0:01:49]} Qb6 {[%emt 0:10:28]} 26. Rec1 {[%emt 0:07:48]} Qb7 {[%emt 0:02:02]} 27. Qd1 {[%emt 0:09:15]} Nf6 {[%emt 0:10:31]} 28. Rc4 {[%emt 0:00:55]} Qd7 {[%emt 0:02:21]} 29. Rbc1 {[%emt 0:01:55]} Nd5 {[%emt 0:01:22]} 30. Qf3 {[%emt 0:03:22]} Bxb4 {[%emt 0:00:45]} 31. Bxb4 {[%emt 0:04:26]} Rxb4 {[%emt 0:00:17]} 32. Rc5 {[%emt 0:00:36]} Nc3 {[%emt 0:01:59]} 33. Re1 {[%emt 0:01:16]} Rb5 {[%emt 0:01:59]} 34. Nf5 {[%emt 0:01:31]} Kh7 {[%emt 0:00:28]} 35. Rc4 {[%emt 0:04:40]} e4 {[%emt 0:00:47]} 36. Rxe4 {[%emt 0:00:42]} Rxf5 {[%emt 0:00:42]} 37. Rexd4 {[%emt 0:00:30]} Ne2+ {[%emt 0:00:54]} 38. Qxe2 {[%emt 0:00:30]} Qxd4 {[%emt 0:00:14]} 0-1

[Event "Vienna Chess Open 2019"]
[Site "Vienna"]
[Date "2019.08.22"]
[Round "7.7"]
[White "Gilevych, Artem"]
[Black "Belous, Mikhail"]
[Result "1-0"]
[ECO "E97"]
[WhiteElo "2424"]
[BlackElo "2308"]
[Annotator "NA"]
[PlyCount "61"]
[EventDate "2019.08.17"]
[EventType "swiss"]
[EventCountry "AUT"]
[SourceTitle "playchess.com"]
[Source "ChessBase"]
[SourceQuality "1"]
[TimeControl "40/5400+30:1800+30"]

1. Nf3 {[%emt 0:00:00]} Nf6 {[%emt 0:00:00]} 2. c4 {[%emt 0:00:00]} g6 {[%emt 0:00:00]} 3. Nc3 {[%emt 0:00:00]} Bg7 {[%emt 0:00:01]} 4. e4 {[%emt 0:00:00]} d6 {[%emt 0:00:11]} 5. d4 {[%emt 0:00:03]} O-O {[%emt 0:00:07]} 6. Be2 {[%emt 0:00:17]} e5 {[%emt 0:00:20]} 7. O-O {[%emt 0:00:23]} Nc6 {[%emt 0:00:07]} 8. d5 {[%emt 0:00:06]} Ne7 {[%emt 0:00:07]} 9. b4 {[%emt 0:00:17]} Nd7 {[%emt 0:07:36]} 10. Re1 {[%emt 0:00:30]} h6 {[%emt 0:05:11]} 11. c5 {[%emt 0:00:38]} f5 {[%emt 0:03:43]} 12. Nd2 {[%emt 0:07:32]} Nf6 {[%emt 0:03:35]} 13. Ba3 {[%emt 0:00:14]} g5 {[%emt 0:12:42]} 14. b5 {[%emt 0:04:08]} Ng6 {[%emt 0:06:56]} 15. Nc4 {[%emt 0:15:27]} dxc5 {[%emt 0:06:49]} 16. Bxc5 {[%emt 0:04:19]} f4 {[%emt 0:09:08]} 17. Bxf8 {[%emt 0:07:42]} Bxf8 {[%emt 0:00:10]} 18. d6 {[%emt 0:08:59]} cxd6 {[%emt 0:00:41]} 19. Nd5 {[%emt 0:06:11]} Be6 {[%emt 0:02:59]} 20. Rc1 {[%emt 0:04:53]} Rc8 {[%emt 0:04:27]} 21. Nxf6+ {[%emt 0:04:46]} Qxf6 {[%emt 0:00:08]} 22. Na5 {[%emt 0:00:57]} Rd8 {[%emt 0:24:25]} 23. Rc7 {[%emt 0:01:35]} b6 {[%emt 0:03:51]} 24. Nc6 {[%emt 0:01:23]} Rd7 {[%emt 0:00:09]} 25. Rxd7 {[%emt 0:01:01]} Bxd7 {[%emt 0:00:04]} 26. Bc4+ {[%emt 0:00:26]} Kg7 {[%emt 0:04:34]} 27. Qd5 {[%emt 0:00:28]} h5 {[%emt 0:00:09]} 28. Qg8+ {[%emt 0:05:04]} Kh6 {[%emt 0:00:02]} 29. Qf7 {[%emt 0:00:30]} Qxf7 {[%emt 0:00:39]} 30. Bxf7 {[%emt 0:00:05]} d5 {[%emt 0:03:30]} 31. Bxg6 {[%emt 0:00:29]} 1-0

[Event "Vienna Chess Open 2019"]
[Site "Vienna"]
[Date "2019.08.22"]
[Round "7.7"]
[White "Gungl, Theo"]
[Black "Yankelevich, Lev"]
[Result "1/2-1/2"]
[ECO "A56"]
[WhiteElo "2344"]
[BlackElo "2480"]
[Annotator "ChessBase"]
[PlyCount "34"]
[EventDate "2019.08.17"]
[EventType "swiss"]
[EventCountry "AUT"]
[SourceTitle "playchess.com"]
[Source "ChessBase"]
[SourceQuality "1"]
[TimeControl "40/5400+30:1800+30"]

1. d4 {[%emt 0:00:00]} Nf6 {[%emt 0:00:00]} 2. c4 {[%emt 0:00:00]} c5 {[%emt 0:00:00]} 3. d5 {[%emt 0:00:00]} g6 {[%emt 0:00:00]} 4. Nc3 {[%emt 0:00:09]} Bg7 {[%emt 0:00:00]} 5. e4 {[%emt 0:00:43]} d6 {[%emt 0:00:00]} 6. Nf3 {[%emt 0:00:33]} O-O {[%emt 0:00:00]} 7. Bd3 {[%emt 0:00:21]} Na6 {[%emt 0:00:41]} 8. O-O {[%emt 0:00:37]} Nc7 {[%emt 0:00:04]} 9. h3 {[%emt 0:01:08]} e6 {[%emt 0:00:05]} 10. Bg5 {[%emt 0:08:06]} h6 {[%emt 0:00:53]} 11. Bd2 {[%emt 0:03:09]} Rb8 {[%emt 0:02:27]} 12. dxe6 {[%emt 0:05:41]} Nxe6 {[%emt 0:03:05]} 13. Be3 {[%emt 0:02:14]} b6 {[%emt 0:02:51]} 14. Qd2 {[%emt 0:00:24]} Kh7 {[%emt 0:01:05]} 15. Rad1 {[%emt 0:00:20]} Qe7 {[%emt 0:11:40]} 16. Rfe1 {[%emt 0:01:04]} Bb7 {[%emt 0:01:40]} 17. Bb1 {[%emt 0:03:26]} Ne8 {[%emt 0:12:16]} 1/2-1/2

[Event "Vienna Chess Open 2019"]
[Site "Vienna"]
[Date "2019.08.22"]
[Round "7.7"]
[White "Mesaros, Florian"]
[Black "Curien, Nicolas"]
[Result "1/2-1/2"]
[ECO "D31"]
[WhiteElo "2259"]
[BlackElo "2420"]
[Annotator "NA"]
[PlyCount "81"]
[EventDate "2019.08.17"]
[EventType "swiss"]
[EventCountry "AUT"]
[SourceTitle "playchess.com"]
[Source "ChessBase"]
[SourceQuality "1"]
[TimeControl "40/5400+30:1800+30"]

1. d4 {[%emt 0:00:00]} d5 {[%emt 0:00:00]} 2. c4 {[%emt 0:00:00]} e6 {[%emt 0:00:00]} 3. Nc3 {[%emt 0:00:00]} Bb4 {[%emt 0:00:13]} 4. a3 {[%emt 0:00:00]} Bxc3+ {[%emt 0:00:11]} 5. bxc3 {[%emt 0:00:00]} Nf6 {[%emt 0:00:53]} 6. cxd5 {[%emt 0:00:09]} exd5 {[%emt 0:00:29]} 7. e3 {[%emt 0:00:08]} O-O {[%emt 0:02:59]} 8. Bd3 {[%emt 0:00:06]} c5 {[%emt 0:06:17]} 9. Ne2 {[%emt 0:00:31]} b6 {[%emt 0:04:14]} 10. O-O {[%emt 0:03:10]} Ba6 {[%emt 0:00:28]} 11. f3 {[%emt 0:00:07]} Bxd3 {[%emt 0:04:12]} 12. Qxd3 {[%emt 0:00:04]} Re8 {[%emt 0:00:57]} 13. Ng3 {[%emt 0:00:10]} Nbd7 {[%emt 0:06:16]} 14. Bb2 {[%emt 0:13:56]} Rc8 {[%emt 0:07:40]} 15. Rae1 {[%emt 0:02:56]} Qc7 {[%emt 0:10:22]} 16. Rf2 {[%emt 0:04:36]} Nf8 {[%emt 0:05:14]} 17. e4 {[%emt 0:01:45]} cxd4 {[%emt 0:08:25]} 18. cxd4 {[%emt 0:01:00]} Qc4 {[%emt 0:02:56]} 19. Qd1 {[%emt 0:02:41]} dxe4 {[%emt 0:05:46]} 20. fxe4 {[%emt 0:00:40]} Ng6 {[%emt 0:01:07]} 21. e5 {[%emt 0:06:19]} Qe6 {[%emt 0:02:43]} 22. Rxf6 {[%emt 0:13:31]} gxf6 {[%emt 0:00:46]} 23. d5 {[%emt 0:00:08]} Qd7 {[%emt 0:02:19]} 24. Nh5 {[%emt 0:01:48]} Qb5 {[%emt 0:01:08]} 25. Nxf6+ {[%emt 0:01:25]} Kf8 {[%emt 0:03:37]} 26. Qd2 {[%emt 0:05:44]} Rc4 {[%emt 0:09:17]} 27. d6 {[%emt 0:08:39]} Nf4 {[%emt 0:01:34]} 28. Nxh7+ {[%emt 0:13:40]} Kg7 {[%emt 0:01:36]} 29. d7 {[%emt 0:02:08]} Kxh7 {[%emt 0:02:35]} 30. dxe8=Q {[%emt 0:03:54]} Qxe8 {[%emt 0:00:09]} 31. Rf1 {[%emt 0:01:42]} Ng6 {[%emt 0:01:42]} 32. Qd5 {[%emt 0:02:17]} Rc7 {[%emt 0:00:45]} 33. e6 {[%emt 0:03:41]} Qxe6 {[%emt 0:03:10]} 34. Qh5+ {[%emt 0:00:11]} Kg8 {[%emt 0:00:06]} 35. Qh6 {[%emt 0:00:16]} f5 {[%emt 0:00:39]} 36. h4 {[%emt 0:05:11]} Rh7 {[%emt 0:02:42]} 37. Qg5 {[%emt 0:00:14]} Rxh4 {[%emt 0:00:46]} 38. Rd1 {[%emt 0:04:27]} Kf7 {[%emt 0:01:31]} 39. Rc1 {[%emt 0:01:23]} Ke8 {[%emt 0:03:05]} 40. Rd1 {[%emt 0:00:48]} Kf7 {[%emt 0:00:12]} 41. Qc1 {[%emt 0:17:14]} 1/2-1/2

[Event "Vienna Chess Open 2019"]
[Site "Vienna"]
[Date "2019.08.22"]
[Round "7.8"]
[White "Storme, Isak"]
[Black "Menezes, Christoph"]
[Result "0-1"]
[ECO "D00"]
[WhiteElo "2420"]
[BlackElo "2420"]
[Annotator "NA"]
[PlyCount "96"]
[EventDate "2019.08.17"]
[EventType "swiss"]
[EventCountry "AUT"]
[SourceTitle "playchess.com"]
[Source "ChessBase"]
[SourceQuality "1"]
[TimeControl "40/5400+30:1800+30"]

1. d4 {[%emt 0:00:50]} d5 {[%emt 0:00:00]} 2. Bf4 {[%emt 0:00:23]} c5 {[%emt 0:00:51]} 3. e3 {[%emt 0:00:37]} Nc6 {[%emt 0:00:25]} 4. c3 {[%emt 0:00:50]} cxd4 {[%emt 0:00:58]} 5. cxd4 {[%emt 0:01:11]} Nf6 {[%emt 0:08:29]} 6. Nc3 {[%emt 0:00:30]} a6 {[%emt 0:00:25]} 7. Bd3 {[%emt 0:03:00]} Bg4 {[%emt 0:00:47]} 8. f3 {[%emt 0:02:06]} Bh5 {[%emt 0:00:05]} 9. g4 {[%emt 0:03:44]} Bg6 {[%emt 0:00:10]} 10. h4 {[%emt 0:00:40]} e6 {[%emt 0:03:24]} 11. Nge2 {[%emt 0:01:15]} Bd6 {[%emt 0:04:34]} 12. h5 {[%emt 0:08:55]} Bxd3 {[%emt 0:00:16]} 13. Qxd3 {[%emt 0:00:25]} h6 {[%emt 0:01:43]} 14. Kf2 {[%emt 0:08:03]} Bxf4 {[%emt 0:04:40]} 15. Nxf4 {[%emt 0:05:07]} Qd6 {[%emt 0:01:47]} 16. Rac1 {[%emt 0:02:22]} Nh7 {[%emt 0:14:24]} 17. Nfe2 {[%emt 0:15:31]} Nf6 {[%emt 0:09:02]} 18. a3 {[%emt 0:06:55]} O-O {[%emt 0:02:48]} 19. Rcg1 {[%emt 0:03:24]} Nh7 {[%emt 0:02:41]} 20. f4 {[%emt 0:00:55]} f6 {[%emt 0:00:45]} 21. Ke1 {[%emt 0:09:52]} Rac8 {[%emt 0:02:59]} 22. Rg2 {[%emt 0:04:09]} b5 {[%emt 0:03:48]} 23. b4 {[%emt 0:02:23]} Ne7 {[%emt 0:00:44]} 24. Kd2 {[%emt 0:04:28]} Rc7 {[%emt 0:02:58]} 25. Rhg1 {[%emt 0:02:25]} e5 {[%emt 0:04:01]} 26. dxe5 {[%emt 0:01:30]} fxe5 {[%emt 0:00:49]} 27. Ne4 {[%emt 0:00:15]} Qb6 {[%emt 0:03:26]} 28. Nc5 {[%emt 0:00:13]} exf4 {[%emt 0:06:56]} 29. exf4 {[%emt 0:01:51]} Nf6 {[%emt 0:01:08]} 30. g5 {[%emt 0:00:29]} Ne4+ {[%emt 0:04:45]} 31. Nxe4 {[%emt 0:00:06]} dxe4 {[%emt 0:00:03]} 32. Qxe4 {[%emt 0:00:35]} Nf5 {[%emt 0:01:09]} 33. gxh6 {[%emt 0:01:53]} Rd8+ {[%emt 0:02:31]} 34. Ke1 {[%emt 0:00:11]} Rcd7 {[%emt 0:00:09]} 35. Rxg7+ {[%emt 0:02:05]} Nxg7 {[%emt 0:00:53]} 36. Rxg7+ {[%emt 0:00:12]} Rxg7 {[%emt 0:00:11]} 37. hxg7 {[%emt 0:00:08]} Qf6 {[%emt 0:00:33]} 38. Kf2 {[%emt 0:03:24]} Kxg7 {[%emt 0:03:12]} 39. Ng3 {[%emt 0:02:40]} Qb2+ {[%emt 0:05:41]} 40. Kf3 {[%emt 0:01:08]} Qc3+ {[%emt 0:02:53]} 41. Kg4 {[%emt 0:03:58]} Rg8 {[%emt 0:00:32]} 42. Qe5+ {[%emt 0:02:58]} Kf7+ {[%emt 0:00:24]} 43. Qg5 {[%emt 0:02:21]} Rxg5+ {[%emt 0:01:08]} 44. fxg5 {[%emt 0:00:07]} Qxa3 {[%emt 0:02:15]} 45. g6+ {[%emt 0:00:18]} Kg7 {[%emt 0:01:12]} 46. Nf5+ {[%emt 0:00:18]} Kf6 {[%emt 0:00:34]} 47. g7 {[%emt 0:00:52]} Qxb4+ {[%emt 0:00:19]} 48. Kg3 {[%emt 0:00:33]} Qb3+ {[%emt 0:00:15]} 0-1

[Event "Vienna Chess Open 2019"]
[Site "Vienna"]
[Date "2019.08.22"]
[Round "7.8"]
[White "Gschnitzer, Adrian"]
[Black "Ghazarian, Kirk"]
[Result "1-0"]
[ECO "B48"]
[WhiteElo "2410"]
[BlackElo "2253"]
[Annotator "NA"]
[PlyCount "67"]
[EventDate "2019.08.17"]
[EventType "swiss"]
[EventCountry "AUT"]
[SourceTitle "playchess.com"]
[Source "ChessBase"]
[SourceQuality "1"]
[TimeControl "40/5400+30:1800+30"]

1. e4 {[%emt 0:01:09]} c5 {[%emt 0:00:27]} 2. Nf3 {[%emt 0:00:12]} e6 {[%emt 0:00:20]} 3. d4 {[%emt 0:00:13]} cxd4 {[%emt 0:00:13]} 4. Nxd4 {[%emt 0:00:10]} Nc6 {[%emt 0:03:05]} 5. Nc3 {[%emt 0:00:26]} Qc7 {[%emt 0:01:41]} 6. Be3 {[%emt 0:00:09]} a6 {[%emt 0:00:47]} 7. Qf3 {[%emt 0:00:20]} Nf6 {[%emt 0:00:39]} 8. O-O-O {[%emt 0:00:22]} Ne5 {[%emt 0:00:46]} 9. Qg3 {[%emt 0:00:25]} b5 {[%emt 0:00:30]} 10. a3 {[%emt 0:00:20]} Bb7 {[%emt 0:00:39]} 11. Bxb5 {[%emt 0:00:15]} Rc8 {[%emt 0:00:08]} 12. Ba4 {[%emt 0:00:42]} Nxe4 {[%emt 0:04:21]} 13. Nxe4 {[%emt 0:00:18]} Bxe4 {[%emt 0:00:20]} 14. Bf4 {[%emt 0:07:19]} Qc4 {[%emt 0:09:55]} 15. Bxe5 {[%emt 0:08:43]} Qxa4 {[%emt 0:00:51]} 16. Rd2 {[%emt 0:00:56]} f6 {[%emt 0:08:21]} 17. Bd6 {[%emt 0:02:25]} Kf7 {[%emt 0:07:10]} 18. Re1 {[%emt 0:04:25]} Bg6 {[%emt 0:00:18]} 19. Kb1 {[%emt 0:07:12]} Bxd6 {[%emt 0:08:47]} 20. Qxd6 {[%emt 0:00:25]} Rhd8 {[%emt 0:06:20]} 21. f4 {[%emt 0:03:23]} Qa5 {[%emt 0:02:24]} 22. Ree2 {[%emt 0:08:32]} h5 {[%emt 0:09:05]} 23. b4 {[%emt 0:12:41]} Rb8 {[%emt 0:16:22]} 24. Ka2 {[%emt 0:02:01]} Qd5+ {[%emt 0:04:19]} 25. Qxd5 {[%emt 0:00:19]} exd5 {[%emt 0:00:02]} 26. Nb3 {[%emt 0:03:18]} Rbc8 {[%emt 0:03:34]} 27. Rxd5 {[%emt 0:06:49]} Rxc2+ {[%emt 0:04:04]} 28. Rxc2 {[%emt 0:00:07]} Bxc2 {[%emt 0:00:04]} 29. Nc5 {[%emt 0:00:17]} d6 {[%emt 0:00:42]} 30. Kb2 {[%emt 0:03:47]} Bh7 {[%emt 0:01:11]} 31. Nxa6 {[%emt 0:01:31]} Be4 {[%emt 0:01:04]} 32. Rd2 {[%emt 0:00:31]} d5 {[%emt 0:00:28]} 33. Nc5 {[%emt 0:01:42]} f5 {[%emt 0:00:07]} 34. Kc3 {[%emt 0:00:40]} 1-0